bitfinex/quotes_SOLUSD_20250401
["timestamp","ask_amount","ask_price","bid_price","bid_amount"]
[1743465602711,0.063,124.73,124.7,0.052307]
[1743465605398,10.96344351,124.72,124.7,0.052307]
[1743465605719,23.20754909,124.72,124.7,0.052307]
[1743465606699,32.10298563,124.72,124.7,0.052307]
[1743465606894,106.11835968,124.71,124.7,0.052307]
[1743465607104,127.00900453,124.71,124.7,0.052307]
[1743465609110,45.70900453,124.71,124.7,0.052307]
[1743465611924,1.5059,124.69,124.6,2.8910266]
[1743465612126,9.8144815,124.68,124.59,1.6276]
[1743465612429,0.14216157,124.7,124.6,1.5766]
[1743465613436,8.30312314,124.71,124.61,8.025]
[1743465613610,0.28432314,124.71,124.62,7.6297]
[1743465613810,8.16076157,124.71,124.63,7.72]
[1743465614120,0.14216157,124.7,124.63,7.72]
[1743465614826,0.28432314,124.69,124.63,15.7436]
[1743465618721,0.14216157,124.68,124.63,15.7436]
[1743465619736,0.14216157,124.68,124.63,15.7736]
[1743465620335,0.14216157,124.66,124.5,21.26338585]
[1743465620630,10.19306859,124.65,124.57,89.29]
[1743465620829,0.14216157,124.71,124.59,6.4599]
[1743465621138,0.14216157,124.71,124.62,20.35301043]
[1743465621433,0.14216157,124.71,124.64,18.64964886]
[1743465622340,8.0805,124.73,124.64,26.67214886]
[1743465622519,8.0805,124.73,124.66,18.64964886]
[1743465623014,0.063,124.73,124.66,18.64964886]
[1743465623233,0.20516157,124.73,124.66,18.64964886]
[1743465623533,0.063,124.73,124.67,1.6223]
[1743465623739,0.063,124.73,124.68,7.86]
[1743465624536,0.063,124.73,124.69,8.0198]
[1743465629821,0.063,124.73,124.7,256.03704886]
[1743465630430,0.063,124.73,124.58,16.0351]
[1743465630734,0.063,124.73,124.62,6.3442]
[1743465630927,0.063,124.73,124.63,18.933972]
[1743465631132,0.063,124.73,124.64,36.2208]
[1743465631333,0.063,124.73,124.66,18.64964886]
[1743465632826,0.20516157,124.73,124.67,8.0211]
[1743465633842,0.34732314,124.73,124.66,8.1]
[1743465634043,18.996972,124.73,124.65,231.24]
[1743465634352,18.933972,124.71,124.65,231.24]
[1743465634729,0.14216157,124.69,124.65,231.24]
[1743465635247,18.933972,124.69,124.65,231.24]
[1743465635442,18.933972,124.69,124.6,8.0556]
[1743465635629,25.5531834,124.69,124.6,8.0556]
[1743465635827,41.45645825,124.69,124.6,8.0556]
[1743465636445,18.933972,124.67,124.6,0.03]
[1743465636743,18.933972,124.65,124.6,0.03]
[1743465637522,25.081372,124.65,124.6,0.03]
[1743465637737,37.1748847,124.65,124.6,0.03]
[1743465638143,89.4,124.64,124.6,0.03]
[1743465638350,0.28432314,124.63,124.6,0.03]
[1743465638749,0.14216157,124.61,124.6,0.03]
[1743465639126,18.933972,124.61,124.6,0.03]
[1743465640253,0.28432314,124.61,124.6,0.03]
[1743465642350,0.14216157,124.61,124.6,0.03]
[1743465643048,8.16716157,124.61,124.6,0.03]
[1743465644258,0.14216157,124.61,124.6,0.03]
[1743465644555,8.16716157,124.61,124.6,0.03]
[1743465648856,8.30932314,124.61,124.6,0.03]
[1743465649872,20.40283584,124.61,124.6,0.03]
[1743465650352,49.52166554,124.61,124.6,0.03]
[1743465661948,0.28432314,124.61,124.6,0.03]
[1743465662265,0.14216157,124.61,124.6,0.03]
[1743465664677,0.063,124.63,124.6,0.03]
[1743465664873,0.063,124.63,124.61,1.6364]
[1743465665168,6.38273271,124.7,124.62,14.2568]
[1743465665370,8.0183,124.72,124.63,18.64964886]
[1743465665679,0.28432314,124.71,124.63,18.64964886]
[1743465666254,0.28432314,124.7,124.63,18.64964886]
[1743465666977,0.28432314,124.7,124.64,8.0231]
[1743465667682,8.30352314,124.7,124.62,22.2807]
[1743465667863,0.28432314,124.7,124.62,22.2807]
[1743465668578,59.3072426,124.7,124.62,6.2968]
[1743465668776,69.77642344,124.7,124.62,6.2968]
[1743465668960,69.77642344,124.7,124.62,14.3209]
[1743465669378,69.77642344,124.7,124.62,6.2968]
[1743465670073,49.77642344,124.7,124.62,14.3209]
[1743465670782,49.77642344,124.7,124.62,6.2968]
[1743465671085,31.12677458,124.7,124.62,14.321]
[1743465671381,31.12677458,124.7,124.62,6.2968]
[1743465672583,0.28432314,124.68,124.62,6.2968]
[1743465673878,0.14216157,124.66,124.62,6.2968]
[1743465674269,0.14216157,124.66,124.61,9.5564]
[1743465675575,18.933972,124.66,124.6,0.03]
[1743465675981,0.14216157,124.64,124.6,0.03]
[1743465677981,8.0237,124.63,124.6,0.03]
[1743465678485,0.28432314,124.62,124.6,0.03]
[1743465679276,18.933972,124.62,124.6,0.03]
[1743465680180,8.30932314,124.61,124.6,0.0001]
[1743465681267,26.93209374,124.61,124.6,0.0001]
[1743465686096,20.66279374,124.61,124.6,0.0001]
[1743465687291,39.3124426,124.61,124.6,0.0001]
[1743465690892,49.78162344,124.61,124.6,0.0001]
[1743465694695,31.2874426,124.61,124.6,0.0001]
[1743465694910,18.933972,124.61,124.6,0.0001]
[1743465695082,0.28432314,124.61,124.6,0.0001]
[1743465697481,12.3534706,124.65,124.6,0.0001]
[1743465697694,0.14216157,124.68,124.6,0.0001]
[1743465697881,0.063,124.69,124.61,1.5267]
[1743465698086,0.063,124.69,124.63,6.2498]
[1743465698305,0.34732314,124.69,124.63,6.2498]
[1743465698903,0.34732314,124.69,124.64,8.0231]
[1743465699089,0.063,124.69,124.64,8.0231]
[1743465699290,0.063,124.69,124.64,28.0808]
[1743465701202,0.063,124.69,124.64,8.0231]
[1743465702204,0.063,124.69,124.64,7.74]
[1743465702389,0.063,124.69,124.63,14.2732]
[1743465702591,0.063,124.69,124.64,7.74]
[1743465704708,0.063,124.69,124.64,15.7625]
[1743465706908,0.063,124.69,124.64,7.74]
[1743465709216,0.063,124.69,124.63,21.9735]
[1743465709420,0.063,124.69,124.63,14.2735]
[1743465709593,0.063,124.69,124.63,13.9498]
[1743465709925,0.28432314,124.68,124.63,13.9498]
[1743465710598,18.933972,124.68,124.61,1.5267]
[1743465710790,18.933972,124.68,124.61,9.2067]
[1743465711098,18.933972,124.68,124.61,1.5267]
[1743465711923,18.933972,124.66,124.6,6.0516]
[1743465712120,18.933972,124.66,124.6,0.0001]
[1743465712713,18.933972,124.66,124.6,8.0257]
[1743465712891,18.933972,124.66,124.6,0.0001]
[1743465715722,0.14216157,124.64,124.6,8.0257]
[1743465716518,0.14216157,124.64,124.6,0.0001]
[1743465719824,0.28432314,124.63,124.6,0.0001]
[1743465721799,0.28432314,124.62,124.6,0.0001]
[1743465722724,0.14216157,124.61,124.6,0.0001]
[1743465723511,29.40315284,124.61,124.6,0.0001]
[1743465723929,48.54839288,124.61,124.6,0.0001]
[1743465725528,20.28432314,124.58,124.57,0.03]
[1743465725830,38.933972,124.58,124.57,0.03]
[1743465726027,46.960872,124.58,124.57,0.03]
[1743465727308,38.933972,124.58,124.57,0.03]
[1743465729826,20.28432314,124.58,124.57,0.03]
[1743465730128,0.28432314,124.58,124.57,0.03]
[1743465733725,10.46918084,124.6,124.57,0.03]
[1743465733928,0.28432314,124.62,124.57,0.03]
[1743465735850,20.28432314,124.6,124.57,0.03]
[1743465738018,0.28432314,124.6,124.57,0.03]
[1743465739835,0.34732314,124.6,124.57,0.03]
[1743465740426,8.37292314,124.6,124.57,0.03]
[1743465746243,0.063,124.6,124.57,0.03]
[1743465749812,0.063,124.6,124.58,7.5]
[1743465750645,0.063,124.6,124.59,8.0263]
[1743465755027,0.063,124.6,124.59,14.5357]
[1743465758958,26.919472,124.65,124.59,14.5357]
[1743465759846,18.896972,124.65,124.59,14.5357]
[1743465760059,18.896972,124.65,124.59,34.6015]
[1743465763234,18.896972,124.65,124.59,34.6315]
[1743465763441,18.959972,124.65,124.59,34.6315]
[1743465763623,26.982572,124.65,124.59,34.6315]
[1743465763943,26.982572,124.65,124.59,8.0563]
[1743465766547,18.959972,124.65,124.59,28.1221]
[1743465766925,26.982472,124.65,124.59,28.1221]
[1743465772153,0.31032314,124.65,124.59,29.6658]
[1743465772455,0.063,124.65,124.59,29.6658]
[1743465773144,0.28432314,124.64,124.59,9.6]
[1743465773650,0.28432314,124.64,124.59,8.0563]
[1743465774861,0.28432314,124.63,124.59,8.0563]
[1743465777134,0.063,124.65,124.59,8.0563]
[1743465777665,0.063,124.65,124.6,1.5758]
[1743465778367,0.063,124.65,124.61,8.025]
[1743465778539,0.063,124.65,124.62,7.36]
[1743465779148,0.063,124.65,124.61,8.025]
[1743465779342,0.063,124.65,124.62,7.36]
[1743465779542,0.063,124.65,124.61,28.0875]
[1743465779742,0.063,124.65,124.62,7.36]
[1743465780663,0.063,124.65,124.63,8.0237]
[1743465782241,0.063,124.65,124.62,15.384]
[1743465783772,0.063,124.65,124.62,35.4449]
[1743465783951,0.34732314,124.65,124.6,8.0256]
[1743465784560,0.063,124.65,124.6,28.0898]
[1743465786386,0.063,124.65,124.61,24.71894886]
[1743465787174,0.063,124.65,124.62,1.5319]
[1743465787382,0.063,124.65,124.63,7.34]
[1743465788417,0.063,124.65,124.64,8.0231]
[1743465792371,0.063,124.66,124.64,8.0231]
[1743465793357,0.063,124.69,124.65,18.64964886]
[1743465794777,0.063,124.69,124.68,20.0]
[1743465794984,0.063,124.69,124.68,27.32]
[1743465795360,0.0001,124.69,124.68,53.99014886]
[1743465798784,0.0001,124.69,124.68,285.25014886]
[1743465800396,0.0001,124.69,124.68,285.28014886]
[1743465801500,0.063,124.76,124.69,18.64964886]
[1743465801675,0.063,124.76,124.72,20.0]
[1743465801880,0.063,124.76,124.73,7.28]
[1743465803081,0.063,124.76,124.74,8.0166]
[1743465809693,0.063,124.76,124.72,28.0628]
[1743465811775,0.063,124.76,124.72,68.1526]
[1743465811976,0.063,124.76,124.72,28.0628]
[1743465816306,0.063,124.76,124.72,68.1526]
[1743465819094,0.063,124.76,124.72,40.0898]
[1743465819299,0.063,124.76,124.73,7.2]
[1743465821502,0.063,124.76,124.74,26.66624886]
[1743465821888,0.063,124.76,124.74,8.0166]
[1743465825801,0.063,124.76,124.74,26.66624886]
[1743465826481,0.0001,124.76,124.74,26.66624886]
[1743465826681,0.0001,124.76,124.75,18.64964886]
[1743465828505,0.0001,124.76,124.75,26.66564886]
[1743465830506,0.0001,124.78,124.75,26.66564886]
[1743465830706,0.0001,124.78,124.77,20.0]
[1743465830879,0.0001,124.78,124.77,27.2]
[1743465831799,0.0001,124.78,124.77,45.84964886]
[1743465832196,0.0001,124.78,124.77,27.2]
[1743465833301,0.0001,124.78,124.77,53.86434886]
[1743465836904,0.0001,124.78,124.77,15.2147]
[1743465837107,0.0001,124.78,124.77,35.2147]
[1743465842596,0.0001,124.78,124.77,53.86434886]
[1743465843614,0.0001,124.78,124.77,35.2147]
[1743465844822,0.0001,124.79,124.77,53.86434886]
[1743465846096,0.0001,124.79,124.78,18.64964886]
[1743465848509,0.0001,124.79,124.78,8.0141]
[1743465852119,0.0001,124.79,124.78,15.2141]
[1743465852719,0.0001,124.79,124.78,8.0141]
[1743465852915,0.0001,124.79,124.77,8.0147]
[1743465853105,0.0001,124.79,124.78,7.2]
[1743465854928,0.0001,124.79,124.78,35.2141]
[1743465856129,0.0001,124.82,124.81,20.0]
[1743465856521,0.0001,124.82,124.81,38.64964886]
[1743465857033,0.0001,124.82,124.81,46.66174886]
[1743465858845,0.0001,124.82,124.81,50.68340307]
[1743465859019,0.0001,124.82,124.81,57.88340307]
[1743465859542,0.0001,124.82,124.81,39.23375421]
[1743465859833,0.0001,124.82,124.81,35.2121]
[1743465862136,0.063,124.86,124.82,18.64964886]
[1743465863947,0.063,124.86,124.83,28.038]
[1743465864122,5.36526157,124.89,124.83,68.0924]
[1743465865144,6.87096157,124.89,124.83,68.0924]
[1743465865643,6.87096157,124.89,124.83,60.0816]
[1743465867122,6.87096157,124.89,124.84,18.64964886]
[1743465867442,6.87096157,124.89,124.85,7.2]
[1743465867821,6.87096157,124.89,124.86,28.0313]
[1743465868221,6.87096157,124.89,124.86,8.0089]
[1743465871649,0.063,124.91,124.86,8.0089]
[1743465871938,0.063,124.91,124.86,28.0313]
[1743465875342,0.063,124.91,124.87,20.30594886]
[1743465875539,0.063,124.92,124.9,20.0]
[1743465875740,0.063,124.92,124.91,7.2]
[1743465876561,0.063,124.92,124.91,15.2057]
[1743465877126,0.063,124.92,124.91,7.2]
[1743465877331,0.063,124.92,124.91,15.2057]
[1743465880942,0.063,124.95,124.91,35.2201]
[1743465887067,0.063,124.95,124.91,15.2057]
[1743465888233,0.063,124.95,124.91,35.2201]
[1743465890861,0.063,124.95,124.91,15.2057]
[1743465891661,0.063,124.95,124.91,35.2201]
[1743465895460,0.063,124.95,124.91,28.0201]
[1743465895651,0.063,124.95,124.91,35.2201]
[1743465901665,0.063,124.95,124.91,36.7225]
[1743465903060,0.063,124.95,124.94,20.0]
[1743465903370,0.0001,124.95,124.94,20.0]
[1743465903759,0.0001,124.97,124.95,18.64964886]
[1743465903968,0.0001,124.97,124.96,7.2]
[1743465905067,0.0001,124.97,124.96,33.85214886]
[1743465906069,0.0001,124.97,124.96,15.2025]
[1743465911463,0.0001,124.97,124.95,7.18]
[1743465912191,0.0001,124.97,124.92,28.0176]
[1743465912385,0.0001,124.97,124.94,7.18]
[1743465913191,0.0001,124.97,124.95,8.0032]
[1743465921983,0.0001,124.97,124.94,15.1835]
[1743465923971,0.0001,124.97,124.94,7.18]
[1743465924972,0.0001,124.97,124.91,28.0825]
[1743465925168,0.0001,124.97,124.92,7.18]
[1743465928094,0.0001,124.97,124.93,8.0044]
[1743465930899,0.14216157,124.96,124.92,0.063]
[1743465931100,0.14216157,124.94,124.92,0.063]
[1743465931709,0.14216157,124.93,124.92,0.063]
[1743465935580,81.3,124.96,124.92,0.063]
[1743465935796,0.14216157,124.95,124.92,0.063]
[1743465936779,0.28432314,124.95,124.92,0.063]
[1743465937605,8.28752314,124.95,124.92,0.063]
[1743465938518,0.28432314,124.95,124.92,0.063]
[1743465938698,8.28752314,124.95,124.92,0.063]
[1743465939703,0.28432314,124.95,124.92,0.063]
[1743465941003,0.14216157,124.95,124.92,0.063]
[1743465945408,81.3,124.96,124.92,0.063]
[1743465945711,0.14226157,124.97,124.93,7.2]
[1743465946112,0.14226157,124.97,124.92,0.063]
[1743465946309,0.0001,124.97,124.93,7.2]
[1743465947191,0.0001,124.97,124.94,8.0038]
[1743465949511,0.0001,124.97,124.94,28.0134]
[1743465950199,0.0001,124.97,124.95,1.5199]
[1743465951203,0.0001,124.97,124.94,8.0038]
[1743465951402,0.0001,124.97,124.93,15.1844]
[1743465952003,0.0001,124.97,124.93,8.0044]
[1743465952913,0.14216157,124.96,124.92,0.063]
[1743465953225,18.933972,124.96,124.92,0.063]
[1743465953531,0.14216157,124.94,124.92,0.063]
[1743465953719,20.14216157,124.93,124.92,0.063]
[1743465954702,38.933972,124.93,124.92,0.063]
[1743465955419,46.938372,124.93,124.92,0.063]
[1743465957137,18.933972,124.93,124.92,0.063]
[1743465957629,0.28432314,124.93,124.92,0.063]
[1743465958806,11.04194249,124.97,124.92,0.063]
[1743465959006,0.28432314,124.96,124.92,0.063]
[1743465959305,8.28702314,124.96,124.92,0.063]
[1743465959501,18.64964886,124.95,124.92,0.063]
[1743465959715,0.14216157,124.94,124.92,0.063]
[1743465959901,0.28432314,124.94,124.92,0.063]
[1743465960723,0.28432314,124.93,124.92,0.063]
[1743465960928,20.434172,124.93,124.92,0.063]
[1743465961123,54.87391819,124.93,124.92,0.063]
[1743465964032,0.28432314,124.92,124.85,7.2]
[1743465964327,0.14216157,124.9,124.85,7.2]
[1743465965428,0.14216157,124.9,124.86,8.0089]
[1743465971338,0.14216157,124.9,124.86,28.0313]
[1743465971637,0.14216157,124.92,124.86,34.567]
[1743465974636,27.74260508,124.95,124.87,1.5654]
[1743465974825,0.28432314,124.94,124.87,1.5654]
[1743465975014,0.28432314,124.94,124.88,8.0076]
[1743465975217,0.28432314,124.94,124.89,7.2]
[1743465978840,0.14216157,124.94,124.9,8.0064]
[1743465979142,0.31432314,124.96,124.9,8.0064]
[1743465980046,0.14216157,124.95,124.9,8.0064]
[1743465984646,0.14216157,124.94,124.9,8.0064]
[1743465984954,0.28432314,124.94,124.88,8.0076]
[1743465986845,0.14216157,124.92,124.88,8.0076]
[1743465987430,0.28432314,124.92,124.87,15.188]
[1743465990748,20.0,124.93,124.87,15.188]
[1743465990954,0.14216157,124.93,124.87,15.188]
[1743465991841,0.28432314,124.93,124.87,35.2088]
[1743465992850,0.28432314,124.94,124.87,41.4432]
[1743465993735,0.28432314,124.94,124.88,1.5457]
[1743465994153,0.14216157,124.94,124.89,8.007]
[1743465994944,0.14216157,124.94,124.89,28.0246]
[1743465997033,0.14216157,124.94,124.89,8.007]
[1743465997957,0.28432314,124.93,124.88,9.5531]
[1743465998266,0.28432314,124.93,124.88,8.0074]
[1743465999465,0.14216157,124.91,124.88,8.0074]
[1743466000056,0.28432314,124.91,124.87,8.008]
[1743466001162,26.968672,124.93,124.87,8.008]
[1743466002359,26.968672,124.93,124.86,8.0719]
[1743466004565,8.31902314,124.93,124.86,28.0943]
[1743466006384,26.968672,124.93,124.86,8.0719]
[1743466006549,46.979872,124.93,124.86,8.0719]
[1743466010179,26.968672,124.93,124.86,28.0943]
[1743466010786,18.963972,124.93,124.86,28.0943]
[1743466012185,26.968672,124.93,124.86,28.0943]
[1743466015275,0.14216157,124.91,124.86,8.0719]
[1743466015584,0.28432314,124.9,124.86,0.063]
[1743466017766,0.14216157,124.9,124.86,0.063]
[1743466017967,0.14216157,124.88,124.86,0.063]
[1743466018168,0.14216157,124.92,124.86,0.063]
[1743466018392,0.28432314,124.92,124.86,7.243]
[1743466019495,0.14216157,124.92,124.86,7.243]
[1743466019669,0.14216157,124.92,124.87,28.0291]
[1743466020368,0.03,124.93,124.87,28.0291]
[1743466024996,0.17216157,124.93,124.87,28.0291]
[1743466027109,0.28432314,124.92,124.87,28.0291]
[1743466027394,0.28432314,124.92,124.87,15.1883]
[1743466027892,0.28432314,124.92,124.87,8.0083]
[1743466029306,0.28432314,124.91,124.87,8.0083]
[1743466029501,18.933972,124.91,124.86,0.063]
[1743466029693,18.933972,124.89,124.86,0.063]
[1743466030799,8.0076,124.88,124.86,0.063]
[1743466031000,0.14216157,124.87,124.86,0.063]
[1743466032081,8.15046157,124.87,124.86,0.063]
[1743466032905,0.14216157,124.87,124.86,0.063]
[1743466034193,8.15046157,124.87,124.86,0.063]
[1743466034888,0.14216157,124.87,124.86,0.063]
[1743466035097,0.14216157,124.89,124.86,0.063]
[1743466035292,27.74510508,124.91,124.86,0.063]
[1743466035293,0.28432314,124.92,124.86,8.9093]
[1743466036307,0.28432314,124.92,124.87,8.0083]
[1743466036510,0.14216157,124.92,124.87,8.0083]
[1743466038218,0.14216157,124.91,124.87,8.0083]
[1743466038814,0.14216157,124.92,124.87,8.0083]
[1743466041006,0.17216157,124.93,124.87,28.0291]
[1743466044807,0.17216157,124.93,124.88,7.18]
[1743466046817,0.17216157,124.93,124.89,8.007]
[1743466051023,0.03,124.93,124.89,28.0246]
[1743466051218,0.03,124.93,124.9,8.3165]
[1743466052020,0.0001,124.93,124.9,8.3165]
[1743466052323,0.0001,124.93,124.91,18.64964886]
[1743466052515,0.0001,124.93,124.92,7.18]
[1743466053209,0.0001,124.93,124.92,33.83474886]
[1743466053411,0.03,124.96,124.95,20.0]
[1743466054123,0.03,124.96,124.95,44.80854886]
[1743466055523,0.03,124.96,124.95,52.81174886]
[1743466055721,0.03,124.96,124.95,283.63174886]
[1743466056309,0.03,124.96,124.95,264.9821]
[1743466059729,0.03,124.96,124.95,283.63174886]
[1743466059904,0.0001,124.97,124.95,264.9821]
[1743466060108,0.0001,124.97,124.96,7.18]
[1743466061412,0.0001,124.97,124.96,15.1825]
[1743466062530,0.0001,124.97,124.96,35.44094886]
[1743466063320,0.0001,124.98,124.97,18.64964886]
[1743466063710,0.0001,124.99,124.97,18.64964886]
[1743466064406,0.03,125.02,124.97,18.64964886]
[1743466064407,0.03,125.02,124.98,26.935172]
[1743466064604,0.03,125.05,125.03,20.0]
[1743466064808,0.03,125.05,125.04,7.18]
[1743466066529,0.03,125.05,125.04,15.1774]
[1743466068223,0.03,125.05,125.03,7.9977]
[1743466068427,0.03,125.05,125.04,7.18]
[1743466069328,0.03,125.05,125.02,7.9987]
[1743466069529,0.03,125.05,125.02,7.18]
[1743466070716,0.31432314,125.05,125.02,7.18]
[1743466070910,0.31432314,125.05,124.99,15.1803]
[1743466071837,7.9974,125.04,124.99,15.1803]
[1743466080242,8.31142314,125.05,124.99,15.1803]
[1743466080645,16.13432314,125.05,124.98,15.1809]
[1743466080821,16.13432314,125.05,124.99,0.063]
[1743466081023,0.14216157,125.03,124.99,0.063]
[1743466081232,0.28432314,125.03,124.99,0.063]
[1743466081647,0.28432314,125.0,124.99,0.063]
[1743466082537,8.28432314,125.0,124.99,0.063]
[1743466083544,0.28432314,125.0,124.99,0.063]
[1743466084545,20.28432314,125.0,124.99,0.063]
[1743466084721,25.82964886,125.04,124.99,0.063]
[1743466084926,0.28432314,125.03,124.99,0.063]
[1743466087151,0.28432314,125.03,124.99,8.0636]
[1743466090941,0.03,125.05,125.03,20.0]
[1743466091127,0.03,125.08,125.04,7.18]
[1743466091634,0.03,125.08,125.05,27.9888]
[1743466091835,0.03,125.08,125.06,7.18]
[1743466092345,0.03,125.08,125.05,27.9888]
[1743466092551,0.03,125.08,125.06,7.18]
[1743466094041,0.03,125.08,125.07,7.9955]
[1743466099433,0.28432314,125.12,125.07,27.9843]
[1743466103041,0.28432314,125.12,125.07,7.9955]
[1743466103252,0.28432314,125.12,125.08,7.16]
[1743466104828,8.27662314,125.12,125.06,8.0588]
[1743466105034,0.14216157,125.1,125.06,0.063]
[1743466105457,0.14216157,125.1,125.06,8.059]
[1743466108357,8.13446157,125.12,125.06,8.059]
[1743466108536,0.28432314,125.12,125.06,8.059]
[1743466108948,0.14216157,125.12,125.06,28.0494]
[1743466109149,0.28432314,125.13,125.06,28.0494]
[1743466111861,8.27602314,125.13,125.06,28.0494]
[1743466112658,0.28432314,125.13,125.06,28.0494]
[1743466113168,7.9907,125.15,125.06,28.0494]
[1743466113347,0.28432314,125.14,125.07,1.6515]
[1743466113761,0.14216157,125.14,125.07,1.6515]
[1743466114746,0.14216157,125.14,125.08,27.982]
[1743466114949,0.03,125.16,125.1,18.64964886]
[1743466115749,0.03,125.16,125.1,22.55302482]
[1743466116343,0.03,125.16,125.1,18.64964886]
[1743466116743,0.03,125.16,125.12,7.9923]
[1743466116951,0.03,125.16,125.13,7.16]
[1743466117360,0.03,125.16,125.11,27.9684]
[1743466117361,0.03,125.16,125.11,15.1526]
[1743466117877,0.03,125.16,125.11,7.16]
[1743466118046,0.03,125.16,125.11,15.1524]
[1743466119169,0.03,125.16,125.11,7.16]
[1743466120269,0.03,125.16,125.11,15.1528]
[1743466121870,20.17216157,125.16,125.11,35.1352]
[1743466123282,20.17216157,125.16,125.11,15.1528]
[1743466124176,28.16196157,125.16,125.11,15.1528]
[1743466124372,8.16196157,125.16,125.11,15.1528]
[1743466125373,28.16196157,125.16,125.11,15.1528]
[1743466128078,28.16196157,125.16,125.11,7.9928]
[1743466128891,0.03,125.16,125.14,20.0]
[1743466129179,0.03,125.16,125.12,7.8222]
[1743466129475,0.03,125.16,125.13,7.16]
[1743466131982,0.03,125.16,125.14,7.991]
[1743466138179,0.03,125.16,125.13,7.16]
[1743466139584,0.03,125.16,125.13,15.1512]
[1743466139880,0.03,125.16,125.13,7.9912]
[1743466141075,0.03,125.16,125.12,7.992]
[1743466141474,0.03,125.16,125.12,27.9728]
[1743466143379,0.03,125.16,125.11,7.16]
[1743466143380,18.933972,125.14,125.07,7.9955]
[1743466144385,18.933972,125.14,125.07,27.9843]
[1743466145585,26.924972,125.14,125.07,27.9843]
[1743466146165,18.933972,125.14,125.07,27.9843]
[1743466146991,26.925372,125.14,125.07,27.9843]
[1743466148593,0.28432314,125.14,125.07,27.9843]
[1743466148780,26.953772,125.16,125.07,27.9843]
[1743466149388,0.17216157,125.16,125.08,18.64964886]
[1743466149592,0.17216157,125.16,125.09,6.1262]
[1743466149795,0.17216157,125.16,125.1,7.16]
[1743466150387,0.03,125.16,125.12,27.9731]
[1743466152591,0.03,125.16,125.12,7.9923]
[1743466155496,0.03,125.16,125.12,27.9731]
[1743466155797,0.03,125.16,125.12,7.9923]
[1743466161425,0.17216157,125.16,125.12,7.9923]
[1743466161626,0.31432314,125.16,125.12,7.9923]
[1743466161799,0.31432314,125.16,125.11,16.7388]
[1743466161999,0.31432314,125.16,125.11,15.1526]
[1743466163625,0.14216157,125.15,125.11,15.1526]
[1743466163826,0.14216157,125.15,125.11,7.9926]
[1743466164032,0.28432314,125.15,125.11,15.1526]
[1743466165527,0.31432314,125.16,125.11,15.1526]
[1743466165917,0.31432314,125.16,125.11,35.135]
[1743466171612,0.17216157,125.16,125.11,35.135]
[1743466172422,0.03,125.16,125.11,35.135]
[1743466172812,0.03,125.16,125.12,1.658]
[1743466174332,0.03,125.16,125.13,27.9708]
[1743466182342,0.03,125.18,125.13,67.9292]
[1743466184040,0.03,125.18,125.13,27.9708]
[1743466195031,0.03,125.18,125.13,7.9916]
[1743466196975,0.14216157,125.17,125.12,7.9923]
[1743466198961,0.14216157,125.17,125.12,8.0553]
[1743466200146,0.14216157,125.17,125.12,15.2153]
[1743466201862,0.14216157,125.16,125.12,15.2153]
[1743466202642,0.28432314,125.16,125.12,15.2153]
[1743466202843,0.14216157,125.15,125.12,8.0553]
[1743466203563,0.28432314,125.16,125.12,8.0553]
[1743466204467,0.14216157,125.16,125.12,8.0553]
[1743466205345,0.28432314,125.16,125.12,8.0553]
[1743466207957,8.27422314,125.16,125.12,8.0553]